fUST/lending_fUST_20260510
["ID","MTS","AMOUNT","RATE_DAILY","PERIOD"]
[421931020,1778349049000,-1698.65,0.00010958,2]
[421931016,1778349049000,-500.0,0.00010958,2]
[421931015,1778349049000,-500.0,0.00010958,2]
[421931025,1778349049000,-500.0,0.00010958,2]
[421931017,1778349049000,-500.0,0.00010958,2]
[421931026,1778349049000,-469.6627525,0.00010958,2]
[421931027,1778349049000,-500.0,0.00010958,2]
[421931018,1778349049000,-500.0,0.00010958,2]
[421931024,1778349049000,-500.0,0.00010958,2]
[421931019,1778349049000,-500.0,0.00010958,2]
[421931021,1778349049000,-500.0,0.00010958,2]
[421931022,1778349049000,-500.0,0.00010958,2]
[421931029,1778349049000,-500.0,0.00010958,2]
[421931028,1778349049000,-2708.83,0.00010958,2]
[421931030,1778349049000,-75.20083862,0.00010958,2]
[421931034,1778349049000,-500.0,0.00010958,2]
[421931032,1778349049000,-500.0,0.00010958,2]
[421931033,1778349049000,-500.0,0.00010958,2]
[421931031,1778349049000,-424.79916138,0.00010958,2]
[421931037,1778349049000,-500.0,0.00010958,2]
[421931035,1778349049000,-500.0,0.00010958,2]
[421931036,1778349049000,-500.0,0.00010958,2]
[421931038,1778349049000,-500.0,0.00010958,2]
[421931040,1778349049000,-500.0,0.00010958,2]
[421931063,1778349049000,-151.0,0.000112,2]
[421931092,1778349049000,-500.0,0.00011232,2]
[421931068,1778349049000,-500.0,0.00011232,2]
[421931106,1778349049000,-500.0,0.00011232,2]
[421931096,1778349049000,-500.0,0.00011232,2]
[421931097,1778349049000,-500.0,0.00011232,2]
[421931099,1778349049000,-500.0,0.00011232,2]
[421931098,1778349049000,-500.0,0.00011232,2]
[421931100,1778349049000,-500.0,0.00011232,2]
[421931101,1778349049000,-585.96,0.00011232,2]
[421931102,1778349049000,-711.9253,0.00011232,2]
[421931103,1778349049000,-500.0,0.00011232,2]
[421931105,1778349049000,-500.0,0.00011232,2]
[421931104,1778349049000,-500.0,0.00011232,2]
[421931111,1778349049000,-500.0,0.00011232,2]
[421931112,1778349049000,-500.0,0.00011232,2]
[421931108,1778349049000,-644.80914063,0.00011232,2]
[421931109,1778349049000,-500.0,0.00011232,2]
[421931115,1778349049000,-500.0,0.00011232,2]
[421931113,1778349049000,-500.0,0.00011232,2]
[421931116,1778349049000,-500.0,0.00011232,2]
[421931107,1778349049000,-500.0,0.00011232,2]
[421931118,1778349049000,-654.67,0.00011232,2]
[421931114,1778349049000,-500.0,0.00011232,2]
[421931110,1778349049000,-500.0,0.00011232,2]
[421931064,1778349049000,-151.0,0.000112,2]
[421931095,1778349049000,-500.0,0.00011232,2]
[421931089,1778349049000,-544.23,0.00011232,2]
[421931117,1778349049000,-500.0,0.00011232,2]
[421931084,1778349049000,-500.0,0.00011232,2]
[421931088,1778349049000,-500.0,0.00011232,2]
[421931078,1778349049000,-500.0,0.00011232,2]
[421931067,1778349049000,-608.5066,0.00011232,2]
[421931070,1778349049000,-500.0,0.00011232,2]
[421931071,1778349049000,-500.0,0.00011232,2]
[421931079,1778349049000,-500.0,0.00011232,2]
[421931080,1778349049000,-605.33,0.00011232,2]
[421931069,1778349049000,-182.69761814,0.00011232,2]
[421931072,1778349049000,-500.0,0.00011232,2]
[421931077,1778349049000,-500.0,0.00011232,2]
[421931073,1778349049000,-500.0,0.00011232,2]
[421931076,1778349049000,-500.0,0.00011232,2]
[421931087,1778349049000,-500.0,0.00011232,2]
[421931074,1778349049000,-500.0,0.00011232,2]
[421931085,1778349049000,-543.55,0.00011232,2]
[421931083,1778349049000,-500.0,0.00011232,2]
[421931081,1778349049000,-500.0,0.00011232,2]
[421931082,1778349049000,-500.0,0.00011232,2]
[421931086,1778349049000,-542.51,0.00011232,2]
[421931091,1778349049000,-503.27,0.00011232,2]
[421931090,1778349049000,-500.0,0.00011232,2]
[421931093,1778349049000,-543.83,0.00011232,2]
[421931075,1778349049000,-500.0,0.00011232,2]
[421931094,1778349049000,-500.0,0.00011232,2]
[421931158,1778349050000,-500.0,0.00011232,2]
[421931161,1778349050000,-500.0,0.00011232,2]
[421931153,1778349050000,-500.0,0.00011232,2]
[421931162,1778349050000,-500.0,0.00011232,2]
[421931152,1778349050000,-500.0,0.00011232,2]
[421931157,1778349050000,-500.0,0.00011232,2]
[421931148,1778349050000,-500.0,0.00011232,2]
[421931154,1778349050000,-500.0,0.00011232,2]
[421931150,1778349050000,-500.0,0.00011232,2]
[421931159,1778349050000,-500.0,0.00011232,2]
[421931163,1778349050000,-500.0,0.00011232,2]
[421931155,1778349050000,-500.0,0.00011232,2]
[421931164,1778349050000,-500.0,0.00011232,2]
[421931178,1778349050000,-766.49,0.00011232,2]
[421931167,1778349050000,-500.0,0.00011232,2]
[421931166,1778349050000,-500.0,0.00011232,2]
[421931168,1778349050000,-500.0,0.00011232,2]
[421931170,1778349050000,-500.0,0.00011232,2]
[421931171,1778349050000,-500.0,0.00011232,2]
[421931169,1778349050000,-396.88701708,0.00011232,2]
[421931173,1778349050000,-500.0,0.00011232,2]
[421931172,1778349050000,-500.0,0.00011232,2]
[421931174,1778349050000,-500.0,0.00011232,2]
[421931175,1778349050000,-500.0,0.00011232,2]
[421931177,1778349050000,-500.0,0.00011232,2]
[421931176,1778349050000,-500.0,0.00011232,2]
[421931151,1778349050000,-500.0,0.00011232,2]
[421931165,1778349050000,-500.0,0.00011232,2]
[421931160,1778349050000,-500.0,0.00011232,2]
[421931123,1778349050000,-500.0,0.00011232,2]
[421931149,1778349050000,-500.0,0.00011232,2]
[421931119,1778349050000,-500.0,0.00011232,2]
[421931121,1778349050000,-500.0,0.00011232,2]
[421931128,1778349050000,-500.0,0.00011232,2]
[421931127,1778349050000,-500.0,0.00011232,2]
[421931120,1778349050000,-500.0,0.00011232,2]
[421931180,1778349050000,-500.0,0.00011232,2]
[421931130,1778349050000,-500.0,0.00011232,2]
[421931133,1778349050000,-500.0,0.00011232,2]
[421931132,1778349050000,-500.0,0.00011232,2]
[421931124,1778349050000,-500.0,0.00011232,2]
[421931131,1778349050000,-500.0,0.00011232,2]
[421931125,1778349050000,-500.0,0.00011232,2]
[421931126,1778349050000,-500.0,0.00011232,2]
[421931122,1778349050000,-500.0,0.00011232,2]
[421931129,1778349050000,-500.0,0.00011232,2]
[421931139,1778349050000,-500.0,0.00011232,2]
[421931135,1778349050000,-515.68911271,0.00011232,2]
[421931144,1778349050000,-500.0,0.00011232,2]
[421931142,1778349050000,-500.0,0.00011232,2]
[421931140,1778349050000,-500.0,0.00011232,2]
[421931134,1778349050000,-500.0,0.00011232,2]
[421931137,1778349050000,-151.0,0.00011232,2]
[421931145,1778349050000,-500.0,0.00011232,2]
[421931143,1778349050000,-500.0,0.00011232,2]
[421931141,1778349050000,-500.0,0.00011232,2]
[421931146,1778349050000,-500.0,0.00011232,2]
[421931138,1778349050000,-500.0,0.00011232,2]
[421931136,1778349050000,-500.0,0.00011232,2]
[421931147,1778349050000,-500.0,0.00011232,2]
[421931156,1778349050000,-500.0,0.00011232,2]
[421931181,1778349050000,-500.0,0.00011232,2]
[421931193,1778349050000,-500.0,0.00011232,2]
[421931183,1778349050000,-500.0,0.00011232,2]
[421931214,1778349050000,-500.0,0.00011232,2]
[421931216,1778349050000,-500.0,0.00011232,2]
[421931217,1778349050000,-500.0,0.00011232,2]
[421931218,1778349050000,-500.0,0.00011232,2]
[421931222,1778349050000,-500.0,0.00011232,2]
[421931232,1778349050000,-500.0,0.00011232,2]
[421931221,1778349050000,-500.0,0.00011232,2]
[421931223,1778349050000,-500.0,0.00011232,2]
[421931233,1778349050000,-500.0,0.00011232,2]
[421931224,1778349050000,-500.0,0.00011232,2]
[421931226,1778349050000,-500.0,0.00011232,2]
[421931229,1778349050000,-500.0,0.00011232,2]
[421931230,1778349050000,-500.0,0.00011232,2]
[421931212,1778349050000,-500.0,0.00011232,2]
[421931227,1778349050000,-500.0,0.00011232,2]
[421931225,1778349050000,-500.0,0.00011232,2]
[421931231,1778349050000,-1673.38,0.00011232,2]
[421931236,1778349050000,-500.0,0.00011232,2]
[421931242,1778349050000,-500.0,0.00011232,2]
[421931240,1778349050000,-500.0,0.00011232,2]
[421931179,1778349050000,-500.0,0.00011232,2]
[421931237,1778349050000,-500.0,0.00011232,2]
[421931235,1778349050000,-500.0,0.00011232,2]
[421931244,1778349050000,-500.0,0.00011232,2]
[421931238,1778349050000,-318.63986139,0.00011232,2]
[421931243,1778349050000,-500.0,0.00011232,2]
[421931239,1778349050000,-500.0,0.00011232,2]
[421931241,1778349050000,-500.0,0.00011232,2]
[421931228,1778349050000,-836.11,0.00011232,2]
[421931220,1778349050000,-520.77124474,0.00011232,2]
[421931234,1778349050000,-500.0,0.00011232,2]
[421931211,1778349050000,-500.0,0.00011232,2]
[421931213,1778349050000,-500.0,0.00011232,2]
[421931194,1778349050000,-8067.169821,0.00011232,2]
[421931184,1778349050000,-500.0,0.00011232,2]
[421931185,1778349050000,-500.0,0.00011232,2]
[421931188,1778349050000,-502.98301006,0.00011232,2]
[421931187,1778349050000,-500.0,0.00011232,2]
[421931182,1778349050000,-500.0,0.00011232,2]
[421931191,1778349050000,-500.0,0.00011232,2]
[421931189,1778349050000,-500.0,0.00011232,2]
[421931190,1778349050000,-1476.62,0.00011232,2]
[421931192,1778349050000,-500.0,0.00011232,2]
[421931195,1778349050000,-500.0,0.00011232,2]
[421931197,1778349050000,-500.0,0.00011232,2]
[421931199,1778349050000,-500.0,0.00011232,2]
[421931186,1778349050000,-500.0,0.00011232,2]
[421931196,1778349050000,-500.0,0.00011232,2]
[421931210,1778349050000,-534.641886,0.00011232,2]
[421931206,1778349050000,-500.0,0.00011232,2]
[421931215,1778349050000,-500.0,0.00011232,2]
[421931209,1778349050000,-500.0,0.00011232,2]
[421931208,1778349050000,-504.53369476,0.00011232,2]
[421931204,1778349050000,-489.844446,0.00011232,2]
[421931219,1778349050000,-500.0,0.00011232,2]
[421931201,1778349050000,-500.0,0.00011232,2]
[421931202,1778349050000,-547.26,0.00011232,2]
[421931198,1778349050000,-508.33,0.00011232,2]
[421931203,1778349050000,-560.217565,0.00011232,2]
[421931200,1778349050000,-500.0,0.00011232,2]
[421931205,1778349050000,-500.0,0.00011232,2]
[421931207,1778349050000,-577.41,0.00011232,2]
[421931275,1778349051000,-500.0,0.00011232,2]
[421931284,1778349051000,-500.0,0.00011232,2]
[421931279,1778349051000,-500.0,0.00011232,2]
[421931274,1778349051000,-500.61341377,0.00011232,2]
[421931269,1778349051000,-500.0,0.00011232,2]
[421931265,1778349051000,-589.83,0.00011232,2]
[421931278,1778349051000,-500.0,0.00011232,2]
[421931264,1778349051000,-500.0,0.00011232,2]
[421931273,1778349051000,-500.0,0.00011232,2]
[421931277,1778349051000,-500.0,0.00011232,2]
[421931281,1778349051000,-500.0,0.00011232,2]
[421931285,1778349051000,-500.0,0.00011232,2]
[421931282,1778349051000,-500.0,0.00011232,2]
[421931280,1778349051000,-500.0,0.00011232,2]
[421931283,1778349051000,-500.0,0.00011232,2]
[421931287,1778349051000,-500.0,0.00011232,2]
[421931297,1778349051000,-522.35,0.00011232,2]
[421931292,1778349051000,-500.0,0.00011232,2]
[421931288,1778349051000,-500.0,0.00011232,2]
[421931271,1778349051000,-249.29,0.00011232,2]
[421931276,1778349051000,-500.0,0.00011232,2]
[421931261,1778349051000,-1558.77,0.00011232,2]
[421931253,1778349051000,-500.0,0.00011232,2]
[421931270,1778349051000,-502.92269996,0.00011232,2]
[421931246,1778349051000,-588.32,0.00011232,2]
[421931245,1778349051000,-500.0,0.00011232,2]
[421931247,1778349051000,-500.0,0.00011232,2]
[421931250,1778349051000,-500.0,0.00011232,2]
[421931249,1778349051000,-7982.863052,0.00011232,2]
[421931251,1778349051000,-500.0,0.00011232,2]
[421931252,1778349051000,-500.0,0.00011232,2]
[421931256,1778349051000,-500.0,0.00011232,2]
[421931260,1778349051000,-500.0,0.00011232,2]
[421931266,1778349051000,-500.0,0.00011232,2]
[421931259,1778349051000,-500.0,0.00011232,2]
[421931248,1778349051000,-500.0,0.00011232,2]
[421931258,1778349051000,-500.0,0.00011232,2]
[421931255,1778349051000,-500.0,0.00011232,2]
[421931254,1778349051000,-500.0,0.00011232,2]
[421931272,1778349051000,-500.0,0.00011232,2]
[421931263,1778349051000,-151.0,0.00011232,2]
[421931262,1778349051000,-500.0,0.00011232,2]
[421931267,1778349051000,-500.0,0.00011232,2]
[421931268,1778349051000,-500.0,0.00011232,2]
[421931257,1778349051000,-500.0,0.00011232,2]
[421931293,1778349051000,-501.76031749,0.00011232,2]
[421931298,1778349051000,-500.85654064,0.00011232,2]
[421931286,1778349051000,-500.0,0.00011232,2]
[421931322,1778349051000,-1459.76,0.00011232,2]
[421931328,1778349051000,-501.68270196,0.00011232,2]
[421931316,1778349051000,-500.0,0.00011232,2]
[421931326,1778349051000,-500.0,0.00011232,2]
[421931318,1778349051000,-502.74814184,0.00011232,2]
[421931321,1778349051000,-500.0,0.00011232,2]
[421931320,1778349051000,-500.0,0.00011232,2]
[421931325,1778349051000,-500.0,0.00011232,2]
[421931324,1778349051000,-500.0,0.00011232,2]
[421931323,1778349051000,-613.69,0.00011232,2]
[421931319,1778349051000,-698.92,0.00011232,2]
[421931329,1778349051000,-494.39192054,0.00011232,2]
[421931331,1778349051000,-535.90183077,0.00011232,2]
[421931333,1778349051000,-208.19686078,0.00011232,2]
[421931335,1778349051000,-682.72,0.00011232,2]
[421931337,1778349051000,-501.50467824,0.00011232,2]
[421931336,1778349051000,-2156.24,0.00011232,2]
[421931334,1778349051000,-500.0,0.00011232,2]
[421931338,1778349051000,-732.2,0.00011232,2]
[421931289,1778349051000,-500.0,0.00011232,2]
[421931330,1778349051000,-301.54300954,0.00011232,2]
[421931327,1778349051000,-500.0,0.00011232,2]
[421931332,1778349051000,-502.61296574,0.00011232,2]
[421931306,1778349051000,-500.0,0.00010958,2]
[421931291,1778349051000,-500.0,0.00011232,2]
[421931317,1778349051000,-500.0,0.00011232,2]
[421931290,1778349051000,-500.0,0.00011232,2]
[421931296,1778349051000,-501.86072855,0.00011232,2]
[421931294,1778349051000,-500.0,0.00011232,2]
[421931300,1778349051000,-500.0,0.00011232,2]
[421931301,1778349051000,-807.1,0.00011232,2]
[421931304,1778349051000,-500.0,0.00011232,2]
[421931302,1778349051000,-858.92,0.00011232,2]
[421931299,1778349051000,-500.0,0.00011232,2]
[421931295,1778349051000,-497.15285951,0.00011232,2]
[421931303,1778349051000,-501.51923546,0.00011232,2]
[421931307,1778349051000,-284.65875244,0.00011232,2]
[421931308,1778349051000,-500.0,0.00011232,2]
[421931315,1778349051000,-502.07484023,0.00011232,2]
[421931314,1778349051000,-500.0,0.00011232,2]
[421931311,1778349051000,-500.0,0.00011232,2]
[421931313,1778349051000,-500.0,0.00011232,2]
[421931310,1778349051000,-500.0,0.00011232,2]
[421931305,1778349051000,-215.34124756,0.00011232,2]
[421931312,1778349051000,-500.0,0.00011232,2]
[421931309,1778349051000,-513.42075395,0.00011232,2]
[421931383,1778349052000,-500.0,0.00011232,2]
[421931393,1778349052000,-504.51,0.00011232,2]
[421931382,1778349052000,-503.6170895,0.00011232,2]
[421931374,1778349052000,-501.98009963,0.00011232,2]
[421931379,1778349052000,-2998.85,0.00011232,2]
[421931378,1778349052000,-316.4539764,0.00011232,2]
[421931380,1778349052000,-500.0,0.00011232,2]
[421931377,1778349052000,-534.71800393,0.00011232,2]
[421931376,1778349052000,-500.0,0.00011232,2]
[421931372,1778349052000,-2784.18,0.00011232,2]
[421931392,1778349052000,-500.0,0.00011232,2]
[421931370,1778349052000,-3920.19,0.00011232,2]
[421931375,1778349052000,-500.0,0.00011232,2]
[421931381,1778349052000,-638.33,0.00011232,2]
[421931395,1778349052000,-500.0,0.00011232,2]
[421931384,1778349052000,-1846.77,0.00011232,2]
[421931390,1778349052000,-502.50388439,0.00011232,2]
[421931387,1778349052000,-500.0,0.00011232,2]
[421931391,1778349052000,-526.32,0.00011232,2]
[421931389,1778349052000,-500.0,0.00011232,2]
[421931388,1778349052000,-500.0,0.00011232,2]
[421931386,1778349052000,-503.33014518,0.00011232,2]
[421931394,1778349052000,-501.87630832,0.00011232,2]
[421931397,1778349052000,-500.0,0.00011232,2]
[421931407,1778349052000,-500.0,0.00011232,2]
[421931406,1778349052000,-500.0,0.00011232,2]
[421931396,1778349052000,-500.0,0.00011232,2]
[421931373,1778349052000,-501.91357958,0.00011232,2]
[421931385,1778349052000,-547.24409018,0.00011232,2]
[421931371,1778349052000,-500.0,0.00011232,2]
[421931347,1778349052000,-500.0,0.00011232,2]
[421931364,1778349052000,-500.0,0.00011232,2]
[421931340,1778349052000,-500.0,0.00011232,2]
[421931341,1778349052000,-500.0,0.00011232,2]
[421931339,1778349052000,-500.81376644,0.00011232,2]
[421931344,1778349052000,-500.0,0.00011232,2]
[421931342,1778349052000,-500.0,0.00011232,2]
[421931343,1778349052000,-748.58,0.00011232,2]
[421931346,1778349052000,-500.0,0.00011232,2]
[421931345,1778349052000,-500.0,0.00011232,2]
[421931356,1778349052000,-1687.5,0.00011232,2]
[421931355,1778349052000,-521.49,0.00011232,2]
[421931350,1778349052000,-738.61,0.00011232,2]
[421931353,1778349052000,-502.41820006,0.00011232,2]
[421931354,1778349052000,-611.35190443,0.00011232,2]
[421931367,1778349052000,-501.13256973,0.00011232,2]
[421931351,1778349052000,-488.94739607,0.00011232,2]
[421931348,1778349052000,-561.98910008,0.00011232,2]
[421931349,1778349052000,-500.0,0.00011232,2]
[421931357,1778349052000,-500.0,0.00011232,2]
[421931368,1778349052000,-500.0,0.00011232,2]
[421931361,1778349052000,-500.92361124,0.00011232,2]
[421931358,1778349052000,-3421.58,0.00011232,2]
[421931359,1778349052000,-500.0,0.00011232,2]
[421931360,1778349052000,-500.0,0.00011232,2]
[421931369,1778349052000,-500.0,0.00011232,2]
[421931362,1778349052000,-501.98,0.00011232,2]
[421931366,1778349052000,-500.0,0.00011232,2]
[421931363,1778349052000,-500.0,0.00011232,2]
[421931365,1778349052000,-550.02,0.00011232,2]
[421931352,1778349052000,-500.0,0.00011232,2]
[421931398,1778349052000,-500.0,0.00011232,2]
[421931405,1778349052000,-243.30476496,0.00011232,2]
[421931404,1778349052000,-500.0,0.00011232,2]
[421931440,1778349052000,-1313.66,0.00011232,2]
[421931437,1778349052000,-500.0,0.00011232,2]
[421931432,1778349052000,-534.07778066,0.00011232,2]
[421931435,1778349052000,-500.0,0.00011232,2]
[421931438,1778349052000,-958.12,0.00011232,2]
[421931436,1778349052000,-500.0,0.00011232,2]
[421931454,1778349052000,-1698.65,0.00011232,2]
[421931444,1778349052000,-501.82103239,0.00011232,2]
[421931455,1778349052000,-500.0,0.00011232,2]
[421931443,1778349052000,-500.0,0.00011232,2]
[421931451,1778349052000,-500.0,0.00011232,2]
[421931448,1778349052000,-426.39590718,0.00011232,2]
[421931446,1778349052000,-861.59,0.00011232,2]
[421931439,1778349052000,-1617.83,0.00011232,2]
[421931450,1778349052000,-501.42,0.00011232,2]
[421931445,1778349052000,-500.0,0.00011232,2]
[421931453,1778349052000,-500.0,0.00011232,2]
[421931449,1778349052000,-2270.04,0.00011232,2]
[421931447,1778349052000,-500.0,0.00011232,2]
[421931461,1778349052000,-500.0,0.00011232,2]
[421931458,1778349052000,-2708.83,0.00011232,2]
[421931403,1778349052000,-500.0,0.00011232,2]
[421931462,1778349052000,-500.0,0.00011232,2]
[421931459,1778349052000,-500.0,0.00011232,2]
[421931460,1778349052000,-500.0,0.00011232,2]
[421931463,1778349052000,-500.0,0.00011232,2]
[421931456,1778349052000,-500.0,0.00011232,2]
[421931464,1778349052000,-500.0,0.00011232,2]
[421931452,1778349052000,-500.0,0.00011232,2]
[421931433,1778349052000,-501.63759061,0.00011232,2]
[421931457,1778349052000,-552.0,0.00011232,2]
[421931430,1778349052000,-500.0,0.00011232,2]
[421931434,1778349052000,-500.0,0.00011232,2]
[421931401,1778349052000,-502.53827881,0.00011232,2]
[421931400,1778349052000,-1103.36,0.00011232,2]
[421931399,1778349052000,-500.0,0.00011232,2]
[421931420,1778349052000,-500.0,0.00011232,2]
[421931409,1778349052000,-500.0,0.00011232,2]
[421931419,1778349052000,-500.0,0.00011232,2]
[421931408,1778349052000,-500.0,0.00011232,2]
[421931411,1778349052000,-500.0,0.00011232,2]
[421931413,1778349052000,-1036.09,0.00011232,2]
[421931415,1778349052000,-500.0,0.00011232,2]
[421931412,1778349052000,-502.77737622,0.00011232,2]
[421931414,1778349052000,-500.0,0.00011232,2]
[421931416,1778349052000,-500.0,0.00011232,2]
[421931402,1778349052000,-500.0,0.00011232,2]
[421931417,1778349052000,-500.0,0.00011232,2]
[421931410,1778349052000,-500.0,0.00011232,2]
[421931442,1778349052000,-500.0,0.00011232,2]
[421931441,1778349052000,-414.45219936,0.00011232,2]
[421931429,1778349052000,-500.0,0.00011232,2]
[421931428,1778349052000,-1826.01,0.00011232,2]
[421931427,1778349052000,-1110.72,0.00011232,2]
[421931431,1778349052000,-500.0,0.00011232,2]
[421931424,1778349052000,-500.0,0.00011232,2]
[421931425,1778349052000,-279.90727158,0.00011232,2]
[421931422,1778349052000,-500.0,0.00011232,2]
[421931421,1778349052000,-500.0,0.00011232,2]
[421931423,1778349052000,-500.0,0.00011232,2]
[421931426,1778349052000,-539.45,0.00011232,2]
[421931418,1778349052000,-500.0,0.00011232,2]
[421931496,1778349053000,-500.0,0.00011506,2]
[421931498,1778349053000,-500.0,0.00011506,2]
[421931497,1778349053000,-429.7558684,0.00011506,2]
[421931494,1778349053000,-500.0,0.00011506,2]
[421931495,1778349053000,-711.9253,0.00011506,2]
[421931491,1778349053000,-500.0,0.00011506,2]
[421931484,1778349053000,-605.33,0.00011506,2]
[421931490,1778349053000,-500.0,0.00011506,2]
[421931493,1778349053000,-500.0,0.00011506,2]
[421931507,1778349053000,-500.0,0.00011506,2]
[421931505,1778349053000,-654.67,0.00011506,2]
[421931499,1778349053000,-500.0,0.00011506,2]
[421931501,1778349053000,-435.89,0.00011506,2]
[421931504,1778349053000,-600.02,0.00011506,2]
[421931503,1778349053000,-500.0,0.00011506,2]
[421931506,1778349053000,-500.0,0.00011506,2]
[421931502,1778349053000,-500.0,0.00011506,2]
[421931519,1778349053000,-500.0,0.00011506,2]
[421931509,1778349053000,-500.0,0.00011506,2]
[421931514,1778349053000,-500.0,0.00011506,2]
[421931492,1778349053000,-500.0,0.00011506,2]
[421931500,1778349053000,-500.0,0.00011506,2]
[421931485,1778349053000,-500.0,0.00011506,2]
[421931474,1778349053000,-500.0,0.00011506,2]
[421931488,1778349053000,-542.51,0.00011506,2]
[421931508,1778349053000,-500.0,0.00011506,2]
[421931466,1778349053000,-500.0,0.00011232,2]
[421931467,1778349053000,-1456.33,0.00011232,2]
[421931465,1778349053000,-500.0,0.00011232,2]
[421931468,1778349053000,-2840.5,0.00011232,2]
[421931470,1778349053000,-281.67,0.00011444,2]
[421931480,1778349053000,-500.0,0.00011506,2]
[421931482,1778349053000,-500.0,0.00011506,2]
[421931481,1778349053000,-500.0,0.00011506,2]
[421931471,1778349053000,-576.6132,0.00011506,2]
[421931469,1778349053000,-21383.56584168,0.00011351,2]
[421931472,1778349053000,-608.5066,0.00011506,2]
[421931475,1778349053000,-500.0,0.00011506,2]
[421931476,1778349053000,-583.01,0.00011506,2]
[421931478,1778349053000,-500.0,0.00011506,2]
[421931473,1778349053000,-500.0,0.00011506,2]
[421931479,1778349053000,-500.0,0.00011506,2]
[421931477,1778349053000,-500.0,0.00011506,2]
[421931487,1778349053000,-327.96,0.00011506,2]
[421931489,1778349053000,-500.0,0.00011506,2]
[421931486,1778349053000,-500.0,0.00011506,2]
[421931483,1778349053000,-500.0,0.00011506,2]
[421931515,1778349053000,-500.0,0.00011506,2]
[421931537,1778349053000,-445.0,0.00011506,2]
[421931512,1778349053000,-500.0,0.00011506,2]
[421931540,1778349053000,-500.0,0.00011506,2]
[421931539,1778349053000,-500.0,0.00011506,2]
[421931543,1778349053000,-296.69496459,0.00011506,2]
[421931542,1778349053000,-622.38881995,0.00011506,2]
[421931541,1778349053000,-500.0,0.00011506,2]
[421931555,1778349053000,-283.8223032,0.00011506,2]
[421931557,1778349053000,-500.0,0.00011506,2]
[421931558,1778349053000,-349.99575454,0.00011506,2]
[421931556,1778349053000,-1476.62,0.00011506,2]
[421931547,1778349053000,-766.49,0.00011506,2]
[421931548,1778349053000,-501.02662592,0.00011506,2]
[421931550,1778349053000,-500.0,0.00011506,2]
[421931553,1778349053000,-500.0,0.00011506,2]
[421931551,1778349053000,-500.0,0.00011506,2]
[421931552,1778349053000,-501.96186702,0.00011506,2]
[421931549,1778349053000,-500.0,0.00011506,2]
[421931554,1778349053000,-370.29041738,0.00011506,2]
[421931560,1778349053000,-150.00424546,0.00011506,2]
[421931559,1778349053000,-5000.0,0.00010848,2]
[421931561,1778349053000,-500.0,0.00011506,2]
[421931510,1778349053000,-500.0,0.00011506,2]
[421931544,1778349053000,-206.72865203,0.00011506,2]
[421931538,1778349053000,-500.0,0.00011506,2]
[421931546,1778349053000,-500.0,0.00011506,2]
[421931562,1778349053000,-1051.31653198,0.00011506,2]
[421931517,1778349053000,-500.0,0.00011506,2]